[Event "2. Itzehoer Schach Open"]
[Site "Itzehoe, Germany"]
[Date "2023.04.29"]
[Round "2.41"]
[White "Liu, Jan Luca"]
[Black "Marx, Jakob"]
[Result "1-0"]
[TimeControl "90 min für 40 Züge, Rest 30 min + 30 Sek pro Zug"]
[WhiteElo "1073"]
[BlackElo "1398"]

1. d4 {[%clk 01:30:58]} {[%emt 00:00:01]} d5 {[%clk 01:30:50]} {[%emt
00:00:10]} 2. c4 {[%clk 01:31:22]} {[%emt 00:00:06]} e5 {[%clk 01:31:13]}
{[%emt 00:00:07]} 3. dxe5 {[%clk 01:31:34]} {[%emt 00:00:17]} d4 {[%clk
01:31:39]} {[%emt 00:00:04]} 4. Nf3 {[%clk 01:31:57]} {[%emt 00:00:07]} Bb4+
{[%clk 01:32:04]} {[%emt 00:00:06]} 5. Bd2 {[%clk 01:31:58]} {[%emt 00:00:28]}
Bxd2+ {[%clk 01:32:23]} {[%emt 00:00:12]} 6. Qxd2 {[%clk 01:32:05]} {[%emt
00:00:23]} c5 {[%clk 01:32:46]} {[%emt 00:00:08]} 7. e3 {[%clk 01:30:54]}
{[%emt 00:01:41]} Nc6 {[%emt 00:00:44]} 8. a3 {[%clk 01:29:10]} {[%emt
00:02:17]} Na5 {[%clk 01:33:19]} {[%emt 00:00:40]} 9. Qd1 {[%clk 01:27:42]}
{[%emt 00:01:57]} Qb6 {[%clk 01:32:40]} {[%emt 00:01:10]} 10. Qc2 {[%clk
01:25:38]} {[%emt 00:02:34]} Ne7 {[%clk 01:32:13]} {[%emt 00:00:57]} 11. Ra2
{[%clk 01:23:48]} {[%emt 00:02:20]} Bf5 {[%clk 01:31:22]} {[%emt 00:01:20]} 12.
Qd1 {[%clk 01:23:11]} {[%emt 00:01:06]} Nb3 {[%clk 01:31:16]} {[%emt 00:01:10]}
13. Nbd2 {[%clk 01:23:39]} {[%emt 00:00:30]} Na5 {[%clk 01:30:51]} {[%emt
00:00:56]} 14. Qa4+ {[%clk 01:21:57]} {[%emt 00:02:11]} Bd7 {[%clk 01:31:09]}
{[%emt 00:00:12]} 15. Qd1 {[%clk 01:22:06]} {[%emt 00:00:21]} Bf5 {[%clk
01:30:49]} {[%emt 00:00:50]} 16. Qa4+ {[%clk 01:22:24]} {[%emt 00:00:12]} Nec6
{[%clk 01:31:13]} {[%emt 00:00:06]} 17. b4 {[%clk 01:21:18]} {[%emt 00:01:36]}
cxb4 {[%clk 01:31:06]} {[%emt 00:00:36]} 18. axb4 {[%clk 01:21:14]} {[%emt
00:00:35]} Qxb4 {[%clk 01:30:23]} {[%emt 00:01:13]} 19. Qxb4 {[%clk 01:20:41]}
{[%emt 00:01:03]} Nxb4 {[%clk 01:30:39]} {[%emt 00:00:13]} 20. Rxa5 {[%clk
01:21:05]} {[%emt 00:00:07]} b6 {[%clk 01:29:56]} {[%emt 00:01:12]} 21. Rb5
{[%emt 00:01:21]} Nc2+ {[%clk 01:28:59]} {[%emt 00:01:16]} 22. Ke2 {[%clk
01:19:44]} {[%emt 00:01:13]} d3+ {[%clk 01:28:57]} {[%emt 00:00:31]} 23. Kd1
{[%clk 01:19:54]} {[%emt 00:00:19]} Bd7 {[%clk 01:28:35]} {[%emt 00:00:53]} 24.
Rd5 {[%clk 01:19:31]} {[%emt 00:00:52]} Ba4 {[%clk 01:28:15]} {[%emt 00:00:51]}
25. Kc1 {[%clk 01:19:53]} {[%emt 00:00:08]} b5 {[%clk 01:27:15]} {[%emt
00:01:30]} 26. Bxd3 {[%clk 01:19:30]} {[%emt 00:00:53]} Nb4 {[%clk 01:27:19]}
{[%emt 00:00:27]} 27. Rd6 {[%clk 01:19:34]} {[%emt 00:00:26]} Nxd3+ {[%emt
00:01:14]} 28. Rxd3 {[%clk 01:19:52]} bxc4 {[%clk 01:27:09]} {[%emt 00:00:06]}
29. Nxc4 {[%clk 01:20:01]} {[%emt 00:00:22]} Rc8 {[%clk 01:27:35]} {[%emt
00:00:04]} 30. Rd4 {[%clk 01:20:17]} {[%emt 00:00:13]} Bb5 {[%clk 01:27:43]}
{[%emt 00:00:22]} 31. Nfd2 {[%clk 01:20:38]} {[%emt 00:00:09]} O-O {[%clk
01:28:03]} {[%emt 00:00:09]} 32. Kd1 {[%clk 01:20:53]} {[%emt 00:00:15]} Rfd8
{[%clk 01:28:19]} {[%emt 00:00:14]} 33. Rxd8+ {[%clk 01:20:24]} {[%emt
00:01:00]} Rxd8 {[%clk 01:28:43]} {[%emt 00:00:06]} 34. Nd6 {[%clk 01:20:22]}
{[%emt 00:00:30]} Ba4+ {[%clk 01:28:54]} {[%emt 00:00:19]} 35. Ke2 {[%clk
01:20:39]} {[%emt 00:00:12]} Bc6 {[%clk 01:28:49]} {[%emt 00:00:35]} 36. f3
{[%clk 01:20:23]} {[%emt 00:00:47]} a5 {[%clk 01:28:38]} {[%emt 00:00:41]} 37.
Ra1 {[%clk 01:20:37]} {[%emt 00:00:17]} a4 {[%clk 01:29:01]} {[%emt 00:00:07]}
38. N2c4 {[%clk 01:20:25]} {[%emt 00:00:41]} h6 {[%clk 01:28:58]} {[%emt
00:00:33]} 39. Na3 {[%clk 01:19:42]} {[%emt 00:01:13]} Rb8 {[%clk 01:29:09]}
{[%emt 00:00:19]} 40. Rb1 {[%clk 01:19:59]} {[%emt 00:00:13]} Rb3 {[%clk
01:29:16]} {[%emt 00:00:23]} 41. Rxb3 {[%clk 01:20:10]} {[%emt 00:00:19]} axb3
{[%clk 01:29:41]} {[%emt 00:00:06]} 42. Nac4 {[%clk 01:20:19]} {[%emt
00:00:20]} Kf8 {[%clk 01:29:26]} {[%emt 00:00:45]} 43. Kd3 {[%clk 01:20:27]}
{[%emt 00:00:22]} Ke7 {[%clk 01:29:26]} {[%emt 00:00:30]} 44. e4 {[%clk
01:20:27]} {[%emt 00:00:30]} Ke6 {[%clk 01:29:08]} {[%emt 00:00:48]} 45. f4
{[%clk 01:20:29]} {[%emt 00:00:27]} g5 {[%clk 01:29:04]} {[%emt 00:00:35]} 46.
f5+ {[%clk 01:20:43]} {[%emt 00:00:17]} Ke7 {[%clk 01:29:13]} {[%emt 00:00:21]}
47. Kc3 {[%clk 01:19:31]} {[%emt 00:01:42]} b2 {[%clk 01:29:20]} {[%emt
00:00:22]} 48. Kxb2 {[%clk 01:19:47]} {[%emt 00:00:14]} g4 {[%clk 01:29:18]}
{[%emt 00:00:33]} 49. Kc3 {[%clk 01:20:02]} {[%emt 00:00:15]} h5 {[%clk
01:29:04]} {[%emt 00:00:43]} 50. Kd2 {[%clk 01:20:26]} {[%emt 00:00:07]} Ba4
{[%clk 01:29:01]} {[%emt 00:00:33]} 51. Ke3 {[%clk 01:20:08]} {[%emt 00:00:49]}
Kd8 {[%clk 01:29:02]} {[%emt 00:00:28]} 52. Nxf7+ {[%clk 01:20:20]} {[%emt
00:00:17]} Ke7 {[%clk 01:29:27]} {[%emt 00:00:06]} 53. e6 {[%clk 01:20:36]}
{[%emt 00:00:14]} Bb3 {[%emt 00:00:58]} 54. Nd2 {[%clk 01:20:13]} {[%emt
00:00:04]} Ba4 {[%clk 01:30:10]} {[%emt 00:00:08]} 55. h3 {[%clk 01:20:35]}
{[%emt 00:00:09]} Bd1 {[%clk 01:29:53]} {[%emt 00:00:47]} 56. Nf1 {[%clk
01:20:40]} {[%emt 00:00:24]} h4 {[%emt 00:02:57]} 57. hxg4 {[%clk 01:18:26]}
{[%emt 00:00:14]} Bxg4 {[%clk 01:30:16]} {[%emt 00:00:09]} 58. Kf4 {[%clk
01:18:46]} {[%emt 00:00:12]} h3 {[%clk 01:30:27]} {[%emt 00:00:20]} 59. gxh3
{[%clk 01:18:35]} {[%emt 00:00:40]} Bxh3 {[%clk 01:30:48]} {[%emt 00:00:08]} 60.
Ng3 {[%clk 01:18:55]} {[%emt 00:00:10]} Bg2 {[%clk 01:30:54]} {[%emt 00:00:25]}
61. Ke5 {[%clk 01:19:20]} {[%emt 00:00:06]} Bh3 {[%clk 01:30:38]} {[%emt
00:00:44]} 62. f6+ {[%clk 01:19:42]} {[%emt 00:00:10]} Kf8 {[%clk 01:30:47]}
{[%emt 00:00:20]} 63. Nf5 {[%clk 01:19:31]} {[%emt 00:00:41]} Bxf5 {[%clk
01:31:04]} {[%emt 00:00:13]} 64. Kxf5 {[%clk 01:17:46]} {[%emt 00:02:14]} Ke8
{[%clk 01:31:26]} {[%emt 00:00:09]} 65. e7 {[%clk 01:18:02]} {[%emt 00:00:13]}
Kxf7 {[%clk 01:31:52]} {[%emt 00:00:05]} 66. e5 {[%clk 01:18:18]} {[%emt
00:00:14]} Ke8 {[%clk 01:32:12]} {[%emt 00:00:09]} 67. Kg6 {[%clk 01:18:40]}
{[%emt 00:00:08]} Kd7 {[%clk 01:32:38]} {[%emt 00:00:05]} 68. Kf7 {[%clk
01:19:04]} {[%emt 00:00:07]} Kc6 {[%clk 01:33:06]} {[%emt 00:00:02]} 69. e8=Q+
{[%clk 01:19:28]} {[%emt 00:00:06]} Kd5 {[%clk 01:33:31]} {[%emt 00:00:05]} 70.
Qe6+ {[%clk 01:19:51]} {[%emt 00:00:07]} Ke4 {[%clk 01:33:57]} {[%emt
00:00:04]} 71. Qc4+ {[%clk 01:20:08]} {[%emt 00:00:13]} Ke3 {[%clk 01:33:37]}
{[%emt 00:00:42]} 72. Ke6 {[%clk 01:18:57]} {[%emt 00:01:49]} Kf3 {[%clk
01:33:57]} {[%emt 00:00:09]} 73. Qd4 {[%clk 01:19:08]} {[%emt 00:00:20]} Kg2
{[%clk 01:34:19]} {[%emt 00:00:07]} 74. Qe3 {[%clk 01:19:31]} {[%emt 00:00:09]}
Kh1 {[%clk 01:34:45]} {[%emt 00:00:03]} 75. Qe2 {[%clk 01:19:52]} {[%emt
00:00:08]} Kg1 {[%clk 01:35:09]} {[%emt 00:00:07]} 76. f7 {[%clk 01:20:18]}
{[%emt 00:00:04]} Kh1 {[%clk 01:35:32]} {[%emt 00:00:06]} 77. f8=Q {[%clk
01:20:15]} {[%emt 00:00:07]} Kg1 {[%clk 01:35:58]} {[%emt 00:00:31]} 78. Qff1#
{[%clk 01:20:39]} {[%emt 00:00:06]} 1-0

[Event "2. Itzehoer Schach Open"]
[Site "Itzehoe, Germany"]
[Date "2023.04.29"]
[Round "2.38"]
[White "Brandt, Volker"]
[Black "Bruehl, Rainer"]
[Result "1-0"]
[TimeControl "90 min für 40 Züge, Rest 30 min + 30 Sek pro Zug"]
[WhiteElo "1469"]
[BlackElo "1269"]

1. d4 {[%clk 01:30:58]} {[%emt 00:00:01]} Nf6 {[%clk 01:30:52]} {[%emt
00:00:08]} 2. f3 {[%clk 01:31:21]} {[%emt 00:00:08]} Nc6 {[%clk 01:31:04]}
{[%emt 00:00:18]} 3. d5 {[%clk 01:31:30]} {[%emt 00:00:21]} Nb4 {[%clk
01:30:14]} {[%emt 00:01:20]} 4. e4 {[%clk 01:31:51]} {[%emt 00:00:09]} e5
{[%clk 01:30:28]} {[%emt 00:00:16]} 5. a3 {[%clk 01:32:00]} {[%emt 00:00:21]}
Na6 {[%clk 01:30:49]} {[%emt 00:00:10]} 6. c4 {[%clk 01:32:06]} {[%emt
00:00:23]} Bc5 {[%clk 01:30:56]} {[%emt 00:00:23]} 7. Ne2 {[%emt 00:00:35]} O-O
{[%clk 01:31:10]} 8. b4 {[%clk 01:32:21]} {[%emt 00:00:26]} Be7 {[%clk
01:31:16]} {[%emt 00:00:24]} 9. Bb2 {[%clk 01:32:41]} {[%emt 00:00:10]} d6
{[%clk 01:31:44]} {[%emt 00:00:02]} 10. Nd2 {[%clk 01:32:15]} {[%emt 00:00:56]}
c5 {[%clk 01:31:46]} {[%emt 00:00:28]} 11. b5 {[%clk 01:31:09]} {[%emt
00:01:36]} Nb8 {[%clk 01:31:53]} {[%emt 00:00:24]} 12. Nc3 {[%clk 01:30:28]}
{[%emt 00:01:10]} a6 {[%clk 01:31:08]} {[%emt 00:01:16]} 13. a4 {[%clk
01:30:10]} {[%emt 00:00:48]} axb5 {[%clk 01:30:24]} {[%emt 00:01:13]} 14. Nxb5
{[%clk 01:30:18]} {[%emt 00:00:22]} b6 {[%clk 01:29:54]} {[%emt 00:01:00]} 15.
Be2 {[%clk 01:30:09]} {[%emt 00:00:39]} Nh5 {[%clk 01:28:34]} {[%emt 00:01:49]}
16. Bc1 {[%clk 01:21:31]} {[%emt 00:09:09]} Nf4 {[%clk 01:27:31]} {[%emt
00:01:33]} 17. Bf1 {[%clk 01:21:40]} {[%emt 00:00:20]} f5 {[%clk 01:25:05]}
{[%emt 00:02:57]} 18. g3 {[%clk 01:20:13]} {[%emt 00:01:57]} Ng6 {[%clk
01:25:12]} {[%emt 00:00:23]} 19. Bg2 {[%clk 01:19:13]} {[%emt 00:01:30]} Bf6
{[%clk 01:24:31]} {[%emt 00:01:12]} 20. Qc2 {[%clk 01:18:21]} {[%emt 00:01:22]}
f4 {[%clk 01:24:03]} {[%emt 00:00:58]} 21. Nb3 {[%clk 01:17:13]} {[%emt
00:01:38]} fxg3 {[%clk 01:20:51]} {[%emt 00:03:42]} 22. hxg3 {[%clk 01:17:31]}
{[%emt 00:00:12]} Na6 {[%clk 01:19:34]} {[%emt 00:01:48]} 23. Bd2 {[%clk
01:17:24]} {[%emt 00:00:36]} Nc7 {[%clk 01:17:54]} {[%emt 00:02:09]} 24. a5
{[%clk 01:15:10]} {[%emt 00:02:44]} Nxb5 {[%clk 01:17:30]} {[%emt 00:00:54]} 25.
cxb5 {[%clk 01:15:30]} {[%emt 00:00:10]} Bg5 {[%clk 01:17:23]} {[%emt
00:00:37]} 26. a6 {[%clk 01:15:01]} {[%emt 00:00:59]} Bd7 {[%clk 01:16:30]}
{[%emt 00:01:22]} 27. Qc4 {[%clk 01:13:39]} {[%emt 00:01:52]} Bxd2+ {[%clk
01:15:23]} {[%emt 00:01:38]} 28. Nxd2 {[%clk 01:13:53]} {[%emt 00:00:16]} Qg5
{[%clk 01:14:47]} {[%emt 00:01:07]} 29. Nf1 {[%clk 01:10:38]} {[%emt 00:03:44]}
Nf4 {[%clk 01:14:28]} {[%emt 00:00:49]} 30. Kf2 {[%clk 01:09:30]} {[%emt
00:01:38]} Nxg2 {[%clk 01:14:25]} {[%emt 00:00:33]} 31. Kxg2 {[%clk 01:09:57]}
{[%emt 00:00:03]} Qf6 {[%clk 01:13:11]} {[%emt 00:01:44]} 32. Nh2 {[%clk
01:06:24]} {[%emt 00:04:03]} h6 {[%clk 01:09:02]} {[%emt 00:04:39]} 33. a7
{[%clk 01:06:46]} {[%emt 00:00:07]} Qd8 {[%clk 01:08:23]} {[%emt 00:01:10]} 34.
Rhf1 {[%clk 01:05:02]} {[%emt 00:02:14]} Qc7 {[%clk 01:07:22]} {[%emt
00:01:32]} 35. f4 {[%clk 01:04:14]} {[%emt 00:01:17]} Rxa7 {[%clk 01:07:21]}
{[%emt 00:00:31]} 36. Rxa7 {[%clk 01:03:21]} {[%emt 00:01:23]} Qxa7 {[%clk
01:07:27]} {[%emt 00:00:25]} 37. fxe5 {[%clk 01:02:29]} {[%emt 00:01:21]} Rxf1
{[%clk 01:06:17]} {[%emt 00:01:40]} 38. Nxf1 {[%clk 01:02:46]} {[%emt
00:00:14]} Qa5 {[%clk 01:06:21]} {[%emt 00:00:26]} 39. e6 {[%clk 01:01:53]}
{[%emt 00:01:23]} Be8 {[%clk 01:06:26]} {[%emt 00:00:25]} 40. e5 {[%clk
01:00:44]} {[%emt 00:01:38]} Qb4 {[%clk 01:06:43]} {[%emt 00:00:12]} 41. Qxb4
{[%clk 01:00:48]} {[%emt 00:00:28]} cxb4 {[%clk 01:07:12]} {[%emt 00:00:02]} 42.
exd6 {[%clk 01:01:01]} {[%emt 00:00:16]} Kf8 {[%clk 01:06:31]} {[%emt
00:01:11]} 43. Nd2 {[%clk 00:59:13]} {[%emt 00:02:19]} Bxb5 {[%clk 01:06:45]}
{[%emt 00:00:15]} 44. d7 {[%clk 00:59:12]} {[%emt 00:00:31]} Ke7 {[%clk
01:07:04]} {[%emt 00:00:08]} 45. d6+ {[%clk 00:59:20]} {[%emt 00:00:24]} 1-0

[Event "2. Itzehoer Schach Open"]
[Site "Itzehoe, Germany"]
[Date "2023.04.29"]
[Round "2.37"]
[White "Tran, Hanna Emilie Mai Hoa"]
[Black "Aguike, Toshiya"]
[Result "0-1"]
[TimeControl "90 min für 40 Züge, Rest 30 min + 30 Sek pro Zug"]
[WhiteElo "1250"]
[BlackElo "1491"]

1. e4 {[%clk 01:30:59]} {[%emt 00:00:01]} e5 {[%clk 01:30:54]} {[%emt
00:00:06]} 2. Nf3 {[%clk 01:31:24]} {[%emt 00:00:05]} Nc6 {[%clk 01:31:20]}
{[%emt 00:00:05]} 3. Bc4 {[%clk 01:31:50]} {[%emt 00:00:03]} Bc5 {[%clk
01:31:41]} {[%emt 00:00:09]} 4. c3 {[%clk 01:32:14]} {[%emt 00:00:05]} Nf6
{[%clk 01:32:05]} {[%emt 00:00:05]} 5. d4 {[%clk 01:32:38]} {[%emt 00:00:06]}
exd4 {[%clk 01:32:30]} {[%emt 00:00:06]} 6. cxd4 {[%clk 01:33:04]} {[%emt
00:00:04]} Bb4+ {[%clk 01:32:43]} {[%emt 00:00:17]} 7. Nc3 {[%clk 01:33:20]}
{[%emt 00:00:14]} d6 {[%clk 01:30:16]} {[%emt 00:02:58]} 8. O-O {[%clk
01:33:36]} {[%emt 00:00:13]} O-O {[%clk 01:30:29]} {[%emt 00:00:18]} 9. Bg5
{[%clk 01:28:52]} {[%emt 00:05:15]} h6 {[%clk 01:30:46]} {[%emt 00:00:13]} 10.
Bh4 {[%clk 01:29:15]} {[%emt 00:00:06]} Bg4 {[%clk 01:30:54]} {[%emt 00:00:22]}
11. d5 {[%clk 01:27:34]} {[%emt 00:02:11]} Ne5 {[%clk 01:31:14]} {[%emt
00:00:10]} 12. Be2 {[%clk 01:27:37]} {[%emt 00:00:27]} g5 {[%clk 01:30:29]}
{[%emt 00:01:14]} 13. Bg3 {[%clk 01:27:55]} {[%emt 00:00:12]} Bxc3 {[%clk
01:29:38]} {[%emt 00:01:22]} 14. bxc3 {[%clk 01:28:04]} {[%emt 00:00:20]} Nxe4
{[%clk 01:29:00]} {[%emt 00:01:09]} 15. Bxe5 {[%clk 01:28:22]} {[%emt
00:00:12]} dxe5 {[%clk 01:29:23]} {[%emt 00:00:07]} 16. Nxe5 {[%clk 01:28:31]}
{[%emt 00:00:21]} Nxc3 {[%clk 01:29:41]} {[%emt 00:00:11]} 17. Qd2 {[%clk
01:26:17]} {[%emt 00:02:44]} Bxe2 {[%clk 01:28:33]} {[%emt 00:01:38]} 18. Qxc3
{[%clk 01:26:32]} {[%emt 00:00:15]} Bxf1 {[%clk 01:28:57]} {[%emt 00:00:06]} 19.
Rxf1 {[%clk 01:26:49]} {[%emt 00:00:14]} Qxd5 {[%clk 01:29:15]} {[%emt
00:00:12]} 20. Ng4 {[%clk 01:25:56]} {[%emt 00:01:23]} Qc6 {[%clk 01:29:19]}
{[%emt 00:00:26]} 21. Nf6+ {[%clk 01:25:39]} {[%emt 00:00:46]} Kg7 {[%clk
01:29:28]} {[%emt 00:00:21]} 22. Nh5+ {[%clk 01:25:53]} {[%emt 00:00:16]} Kg6
{[%clk 01:29:05]} {[%emt 00:00:52]} 23. Qxc6+ {[%clk 01:23:49]} {[%emt
00:02:34]} bxc6 {[%clk 01:28:35]} {[%emt 00:01:01]} 24. Ng3 {[%clk 01:24:13]}
{[%emt 00:00:05]} Rab8 {[%clk 01:28:54]} {[%emt 00:00:11]} 25. Rc1 {[%clk
01:24:31]} {[%emt 00:00:13]} Rb2 {[%clk 01:28:07]} {[%emt 00:01:17]} 26. Rxc6+
{[%clk 01:24:44]} {[%emt 00:00:17]} f6 {[%clk 01:28:20]} {[%emt 00:00:17]} 27.
h3 {[%clk 01:24:04]} {[%emt 00:01:10]} Rxa2 {[%clk 01:28:34]} {[%emt 00:00:16]}
28. Rxc7 {[%clk 01:24:24]} {[%emt 00:00:10]} Ra8 {[%clk 01:28:51]} {[%emt
00:00:13]} 29. Ne4 {[%clk 01:24:38]} {[%emt 00:00:15]} a5 {[%clk 01:27:59]}
{[%emt 00:01:23]} 30. Rc6 {[%clk 01:24:41]} {[%emt 00:00:27]} a4 {[%clk
01:28:13]} {[%emt 00:00:16]} 31. Rxf6+ {[%clk 01:24:46]} {[%emt 00:00:25]} Kg7
{[%clk 01:28:33]} {[%emt 00:00:09]} 32. Rc6 {[%clk 01:22:43]} {[%emt 00:02:33]}
a3 {[%clk 01:27:59]} {[%emt 00:01:04]} 33. Rc7+ {[%clk 01:22:59]} {[%emt
00:00:14]} Kf8 {[%clk 01:27:06]} {[%emt 00:01:23]} 34. Rh7 {[%clk 01:22:39]}
{[%emt 00:00:50]} Ra6 {[%clk 01:26:58]} {[%emt 00:00:38]} 35. Rh8+ {[%clk
01:22:32]} {[%emt 00:00:37]} Kg7 {[%clk 01:27:20]} {[%emt 00:00:08]} 36. Rc8
{[%clk 01:22:57]} {[%emt 00:00:05]} Ra1+ {[%clk 01:27:34]} {[%emt 00:00:16]} 37.
Kh2 {[%clk 01:23:22]} {[%emt 00:00:05]} a2 {[%clk 01:27:53]} {[%emt 00:00:12]}
38. Rc7+ {[%clk 01:23:36]} {[%emt 00:00:16]} Kg6 {[%clk 01:27:58]} {[%emt
00:00:24]} 39. Rc2 {[%clk 01:18:05]} {[%emt 00:06:01]} Rb1 {[%clk 01:27:57]}
{[%emt 00:00:31]} 40. Rxa2 {[%clk 01:18:21]} {[%emt 00:00:14]} Rxa2 {[%clk
01:28:21]} {[%emt 00:00:05]} 41. Nc3 {[%clk 01:18:48]} {[%emt 00:00:03]} Rbb2
{[%clk 01:28:38]} {[%emt 00:00:14]} 42. Nxa2 {[%clk 01:18:40]} {[%emt
00:00:38]} Rxa2 {[%clk 01:29:02]} {[%emt 00:00:06]} 0-1

[Event "2. Itzehoer Schach Open"]
[Site "Itzehoe, Germany"]
[Date "2023.04.29"]
[Round "2.44"]
[White "Drozd, Maciej"]
[Black "Oortmann, Alexis"]
[Result "0-1"]
[TimeControl "90 min für 40 Züge, Rest 30 min + 30 Sek pro Zug"]
[WhiteElo "1334"]
[BlackElo "1095"]

1. e4 {[%clk 01:30:57]} {[%emt 00:00:02]} c5 {[%clk 01:30:56]} {[%emt
00:00:03]} 2. Nf3 {[%clk 01:31:22]} {[%emt 00:00:05]} Nc6 {[%clk 01:31:21]}
{[%emt 00:00:06]} 3. d4 {[%clk 01:31:31]} {[%emt 00:00:21]} cxd4 {[%clk
01:31:44]} {[%emt 00:00:07]} 4. Nxd4 {[%clk 01:31:53]} {[%emt 00:00:07]} Nf6
{[%clk 01:32:02]} {[%emt 00:00:13]} 5. Nc3 {[%clk 01:32:00]} {[%emt 00:00:24]}
e5 {[%clk 01:32:24]} {[%emt 00:00:08]} 6. Ndb5 {[%clk 01:31:16]} {[%emt
00:01:14]} d6 {[%clk 01:32:42]} {[%emt 00:00:12]} 7. Nd5 {[%clk 01:30:42]}
{[%emt 00:01:03]} Nxd5 {[%clk 01:31:38]} {[%emt 00:01:34]} 8. exd5 {[%clk
01:30:27]} {[%emt 00:00:46]} Nb8 {[%clk 01:30:24]} {[%emt 00:01:43]} 9. c4
{[%clk 01:28:28]} {[%emt 00:02:29]} Be7 {[%clk 01:30:09]} {[%emt 00:00:46]} 10.
Bd3 {[%clk 01:28:13]} {[%emt 00:00:44]} O-O {[%clk 01:29:53]} {[%emt 00:00:46]}
11. O-O {[%clk 01:26:20]} {[%emt 00:02:22]} a6 {[%clk 01:29:06]} {[%emt
00:01:17]} 12. Nc3 {[%clk 01:26:43]} {[%emt 00:00:08]} f5 {[%clk 01:29:31]}
{[%emt 00:00:06]} 13. Re1 {[%clk 01:23:10]} {[%emt 00:04:02]} Nd7 {[%clk
01:29:14]} {[%emt 00:00:47]} 14. b4 {[%clk 01:17:57]} {[%emt 00:05:43]} Nf6
{[%clk 01:28:02]} {[%emt 00:01:42]} 15. Qb3 {[%clk 01:11:09]} {[%emt 00:07:19]}
Kh8 {[%clk 01:27:46]} {[%emt 00:00:45]} 16. Ba3 {[%clk 01:08:56]} {[%emt
00:02:42]} Bd7 {[%clk 01:24:37]} {[%emt 00:03:40]} 17. Rad1 {[%clk 00:57:01]}
{[%emt 00:12:25]} Qe8 {[%clk 01:18:58]} {[%emt 00:06:08]} 18. Ne2 {[%clk
00:43:14]} {[%emt 00:14:16]} g5 {[%clk 01:08:32]} {[%emt 00:10:57]} 19. Bc2
{[%clk 00:41:15]} {[%emt 00:02:30]} Qg6 {[%clk 01:05:18]} {[%emt 00:03:44]} 20.
Bb2 {[%emt 00:08:08]} Rac8 {[%clk 00:58:56]} {[%emt 00:06:51]} 21. Ng3 {[%clk
00:29:49]} {[%emt 00:04:18]} Ng8 {[%clk 00:57:58]} {[%emt 00:01:29]} 22. c5
{[%clk 00:24:02]} {[%emt 00:06:17]} dxc5 {[%clk 00:37:55]} {[%emt 00:20:32]} 23.
bxc5 {[%clk 00:20:32]} {[%emt 00:04:00]} Rxc5 {[%clk 00:36:20]} {[%emt
00:02:05]} 24. Bxe5+ {[%clk 00:19:25]} {[%emt 00:01:37]} Bf6 {[%clk 00:35:52]}
{[%emt 00:00:59]} 25. Bxf6+ {[%clk 00:16:35]} {[%emt 00:03:19]} Nxf6 {[%clk
00:32:58]} {[%emt 00:03:24]} 26. Bb1 {[%clk 00:12:07]} {[%emt 00:04:58]} Rb5
{[%clk 00:28:04]} {[%emt 00:05:24]} 27. Qa3 {[%clk 00:08:59]} {[%emt 00:03:38]}
Re8 {[%clk 00:25:21]} {[%emt 00:03:13]} 28. Rxe8+ {[%clk 00:08:34]} {[%emt
00:00:55]} Qxe8 {[%clk 00:25:21]} {[%emt 00:00:30]} 29. Bxf5 {[%clk 00:07:44]}
{[%emt 00:01:20]} Bxf5 {[%clk 00:25:32]} {[%emt 00:00:19]} 30. Nxf5 {[%clk
00:08:08]} {[%emt 00:00:06]} Rxd5 {[%clk 00:25:35]} {[%emt 00:00:28]} 31. Rxd5
{[%clk 00:08:05]} {[%emt 00:00:31]} Qe1# {[%clk 00:26:01]} {[%emt 00:00:06]}
0-1

[Event "2. Itzehoer Schach Open"]
[Site "Itzehoe, Germany"]
[Date "2023.04.29"]
[Round "2.39"]
[White "Lorenz, Felix"]
[Black "Moeller, Rainer"]
[Result "1-0"]
[TimeControl "90 min für 40 Züge, Rest 30 min + 30 Sek pro Zug"]
[WhiteElo "1128"]
[BlackElo "1414"]

1. e4 {[%clk 01:30:56]} {[%emt 00:00:03]} c5 {[%clk 01:30:52]} {[%emt
00:00:08]} 2. Nf3 {[%clk 01:31:23]} {[%emt 00:00:05]} d6 {[%clk 01:30:54]}
{[%emt 00:00:28]} 3. c3 {[%clk 01:31:20]} {[%emt 00:00:32]} Nc6 {[%clk
01:30:30]} {[%emt 00:00:55]} 4. d4 {[%clk 01:31:22]} {[%emt 00:00:28]} cxd4
{[%clk 01:30:52]} {[%emt 00:00:08]} 5. cxd4 {[%clk 01:31:48]} {[%emt 00:00:04]}
Nf6 {[%clk 01:30:17]} {[%emt 00:01:04]} 6. Be2 {[%clk 01:29:43]} {[%emt
00:02:36]} Nxe4 {[%clk 01:26:11]} {[%emt 00:04:35]} 7. d5 {[%clk 01:29:16]}
{[%emt 00:00:58]} Ne5 {[%clk 01:24:09]} {[%emt 00:02:31]} 8. Qa4+ {[%clk
01:27:50]} {[%emt 00:01:58]} Bd7 {[%clk 01:20:36]} {[%emt 00:04:02]} 9. Qxe4
{[%clk 01:28:13]} {[%emt 00:00:07]} Nxf3+ {[%clk 01:12:40]} {[%emt 00:08:26]}
10. Qxf3 {[%clk 01:27:43]} {[%emt 00:01:00]} g6 {[%clk 01:02:50]} {[%emt
00:10:19]} 11. O-O {[%clk 01:26:07]} {[%emt 00:02:06]} Bg7 {[%clk 01:02:41]}
{[%emt 00:00:40]} 12. Nc3 {[%clk 01:25:16]} {[%emt 00:01:21]} O-O {[%clk
01:02:47]} {[%emt 00:00:23]} 13. Bf4 {[%clk 01:19:22]} {[%emt 00:06:23]} a6
{[%clk 00:57:43]} {[%emt 00:05:35]} 14. Rab1 {[%clk 01:11:16]} {[%emt
00:08:36]} b5 {[%clk 00:57:21]} {[%emt 00:00:52]} 15. a3 {[%clk 01:07:53]}
{[%emt 00:03:52]} Rb8 {[%clk 00:53:16]} {[%emt 00:04:34]} 16. b4 {[%clk
01:01:35]} {[%emt 00:06:49]} Rc8 {[%clk 00:42:23]} {[%emt 00:11:20]} 17. Rbc1
{[%clk 00:59:20]} {[%emt 00:02:47]} e5 {[%clk 00:31:08]} {[%emt 00:11:45]} 18.
dxe6 {[%clk 00:58:54]} {[%emt 00:00:57]} Bxe6 {[%clk 00:31:21]} {[%emt
00:00:17]} 19. Ne4 {[%clk 00:54:01]} {[%emt 00:05:21]} Bd5 {[%clk 00:27:26]}
{[%emt 00:04:26]} 20. Rxc8 {[%clk 00:52:51]} {[%emt 00:01:41]} Qxc8 {[%clk
00:27:44]} {[%emt 00:00:13]} 21. Nf6+ {[%clk 00:52:55]} {[%emt 00:00:25]} Bxf6
{[%clk 00:26:01]} {[%emt 00:02:12]} 22. Qxd5 {[%clk 00:53:16]} {[%emt
00:00:10]} Re8 {[%clk 00:24:41]} {[%emt 00:01:50]} 23. Qxd6 {[%clk 00:50:21]}
{[%emt 00:03:25]} Qc3 {[%clk 00:22:59]} {[%emt 00:02:12]} 24. Bf3 {[%clk
00:40:27]} {[%emt 00:10:24]} Kg7 {[%clk 00:14:13]} {[%emt 00:09:16]} 25. Qxa6
{[%clk 00:38:21]} {[%emt 00:02:36]} Re1 {[%clk 00:14:11]} {[%emt 00:00:32]} 26.
Qxb5 {[%clk 00:37:13]} {[%emt 00:01:38]} Rxf1+ {[%clk 00:13:54]} {[%emt
00:00:46]} 27. Qxf1 {[%clk 00:34:55]} {[%emt 00:02:48]} Qxa3 {[%clk 00:14:18]}
{[%emt 00:00:07]} 28. Qb1 {[%clk 00:34:57]} {[%emt 00:00:28]} 1-0